[Event "January 9 Late 2024"]
[Site "https://www.chess.com"]
[Date "2024.01.09"]
[Round "6"]
[White "Brodsky, David"]
[Black "Dilmukhametov, Artur"]
[Result "1/2-1/2"]
[Board "99"]
[TimeControl "180+1"]
[WhiteFideId "2073250"]
[BlackFideId "24179922"]
[WhiteElo "2826"]
[BlackElo "2317"]
[WhiteTeam "USA"]
[BlackTeam "RUS"]
[WhiteClock "0:00:18"]
[BlackClock "0:00:29"]

1. b3 {[%clk 0:03:00]}  d5 {[%clk 0:02:46]} 2. Bb2 {[%clk 0:03:00]}  c5 {[%clk 0:02:46]} 3. e3 {[%clk 0:02:59]}  Nc6 {[%clk 0:02:46]} 4. Nf3 {[%clk 0:02:57]}  Nf6 {[%clk 0:02:46]} 5. Bb5 {[%clk 0:02:57]}  Bd7 {[%clk 0:02:45]} 6. O-O {[%clk 0:02:58]}  e6 {[%clk 0:02:44]} 7. c4 {[%clk 0:02:56]}  dxc4 {[%clk 0:02:44]} 8. bxc4 {[%clk 0:02:55]}  a6 {[%clk 0:02:44]} 9. Bxc6 {[%clk 0:02:54]}  Bxc6 {[%clk 0:02:44]} 10. Ne5 {[%clk 0:02:54]}  Qc7 {[%clk 0:02:42]} 11. f4 {[%clk 0:02:32]}  Be7 {[%clk 0:02:35]} 12. Nc3 {[%clk 0:02:24]}  Rd8 {[%clk 0:02:32]} 13. Qe2 {[%clk 0:02:20]}  O-O {[%clk 0:02:26]} 14. Rad1 {[%clk 0:02:20]}  Ne4 {[%clk 0:02:24]} 15. Nxe4 {[%clk 0:02:08]}  Bxe4 {[%clk 0:02:23]} 16. d3 {[%clk 0:02:08]}  Bc6 {[%clk 0:02:22]} 17. Qg4 {[%clk 0:01:58]}  f5 {[%clk 0:02:15]} 18. Qe2 {[%clk 0:01:47]}  Bf6 {[%clk 0:02:15]} 19. g4 {[%clk 0:01:47]}  fxg4 {[%clk 0:02:08]} 20. Qxg4 {[%clk 0:01:42]}  Bxe5 {[%clk 0:02:09]} 21. Bxe5 {[%clk 0:01:42]}  Qf7 {[%clk 0:02:08]} 22. Kf2 {[%clk 0:01:27]}  g6 {[%clk 0:02:07]} 23. e4 {[%clk 0:01:18]}  Rd7 {[%clk 0:01:59]} 24. Ke3 {[%clk 0:01:17]}  Rfd8 {[%clk 0:01:51]} 25. h4 {[%clk 0:01:17]}  b5 {[%clk 0:01:51]} 26. h5 {[%clk 0:00:58]}  bxc4 {[%clk 0:01:51]} 27. dxc4 {[%clk 0:00:58]}  Rxd1 {[%clk 0:01:42]} 28. Rxd1 {[%clk 0:00:59]}  Rxd1 {[%clk 0:01:42]} 29. Qxd1 {[%clk 0:01:00]}  gxh5 {[%clk 0:01:43]} 30. Qd8+ {[%clk 0:00:58]}  Be8 {[%clk 0:01:41]} 31. f5 {[%clk 0:00:51]}  h6 {[%clk 0:01:29]} 32. Qd6 {[%clk 0:00:27]}  exf5 {[%clk 0:01:28]} 33. Qxh6 {[%clk 0:00:27]}  Qh7 {[%clk 0:01:17]} 34. Qg5+ {[%clk 0:00:25]}  Qg6 {[%clk 0:01:17]} 35. Qxf5 {[%clk 0:00:18]}  Qxf5 {[%clk 0:01:02]} 36. exf5 {[%clk 0:00:19]}  Bd7 {[%clk 0:00:38]} 37. Kf4 {[%clk 0:00:17]}  Be8 {[%clk 0:00:32]} 38. Bd6 {[%clk 0:00:14]}  Bf7 {[%clk 0:00:32]} 39. Bxc5 {[%clk 0:00:15]}  Bxc4 {[%clk 0:00:32]} 40. a3 {[%clk 0:00:15]}  Kf7 {[%clk 0:00:31]} 41. Kg5 {[%clk 0:00:16]}  Be2 {[%clk 0:00:30]} 42. Bd4 {[%clk 0:00:16]}  Bd3 {[%clk 0:00:29]} 43. Bc3 {[%clk 0:00:16]}  h4 {[%clk 0:00:29]} 44. Kxh4 {[%clk 0:00:15]}  Bxf5 {[%clk 0:00:27]} 45. Kg5 {[%clk 0:00:16]}  Bd3 {[%clk 0:00:27]} 46. Kf4 {[%clk 0:00:16]}  Ke6 {[%clk 0:00:28]} 47. Ke3 {[%clk 0:00:17]}  Bf1 {[%clk 0:00:29]} 48. Kd4 {[%clk 0:00:17]}  Kd6 {[%clk 0:00:29]} 49. Bb4+ {[%clk 0:00:17]}  Kc6 {[%clk 0:00:30]} 50. Kc3 {[%clk 0:00:18]}  Kb5 {[%clk 0:00:30]} 51. Bf8 {[%clk 0:00:18]}  Be2 {[%clk 0:00:30]} 52. Kb2 {[%clk 0:00:19]}  Ka4 {[%clk 0:00:29]} 53. Bg7 {[%clk 0:00:18]} 1/2-1/2

[Event "January 9 Late 2024"]
[Site "https://www.chess.com"]
[Date "2024.01.09"]
[Round "6"]
[White "Ibadov, Dashgyn"]
[Black "Silva, Caio Henrique Angelico"]
[Result "0-1"]
[Board "103"]
[TimeControl "180+1"]
[WhiteFideId "24107514"]
[BlackFideId "22777210"]
[WhiteElo "2633"]
[BlackElo "2514"]
[WhiteTeam "FID"]
[BlackTeam "BRA"]
[WhiteClock "0:00:00"]
[BlackClock "0:00:09"]

1. e4 {[%clk 0:03:00]}  c6 {[%clk 0:02:56]} 2. d4 {[%clk 0:03:00]}  d5 {[%clk 0:02:57]} 3. exd5 {[%clk 0:02:59]}  cxd5 {[%clk 0:02:58]} 4. Bd3 {[%clk 0:02:58]}  Nc6 {[%clk 0:02:58]} 5. c3 {[%clk 0:02:59]}  Nf6 {[%clk 0:02:57]} 6. h3 {[%clk 0:02:59]}  g6 {[%clk 0:02:56]} 7. Nf3 {[%clk 0:02:58]}  Bf5 {[%clk 0:02:55]} 8. Be2 {[%clk 0:02:57]}  Qc7 {[%clk 0:02:52]} 9. O-O {[%clk 0:02:55]}  Bg7 {[%clk 0:02:52]} 10. Be3 {[%clk 0:02:56]}  O-O {[%clk 0:02:51]} 11. Nbd2 {[%clk 0:02:57]}  a6 {[%clk 0:02:50]} 12. Re1 {[%clk 0:02:56]}  b5 {[%clk 0:02:46]} 13. Nb3 {[%clk 0:02:47]}  Ne4 {[%clk 0:02:31]} 14. Ng5 {[%clk 0:02:36]}  Nxg5 {[%clk 0:02:21]} 15. Bxg5 {[%clk 0:02:37]}  b4 {[%clk 0:02:00]} 16. Qd2 {[%clk 0:02:35]}  bxc3 {[%clk 0:02:00]} 17. bxc3 {[%clk 0:02:36]}  e5 {[%clk 0:01:48]} 18. Bh6 {[%clk 0:02:28]}  exd4 {[%clk 0:01:41]} 19. Bxg7 {[%clk 0:02:27]}  Kxg7 {[%clk 0:01:41]} 20. cxd4 {[%clk 0:02:16]}  Qd6 {[%clk 0:01:36]} 21. Rac1 {[%clk 0:02:10]}  Rfc8 {[%clk 0:01:30]} 22. Bf3 {[%clk 0:02:08]}  a5 {[%clk 0:01:29]} 23. Nc5 {[%clk 0:02:06]}  Rab8 {[%clk 0:01:13]} 24. h4 {[%clk 0:02:00]}  Rb4 {[%clk 0:00:45]} 25. h5 {[%clk 0:01:54]}  Nxd4 {[%clk 0:00:40]} 26. h6+ {[%clk 0:01:53]}  Kf8 {[%clk 0:00:38]} 27. Nd3 {[%clk 0:00:33]}  Nxf3+ {[%clk 0:00:27]} 28. gxf3 {[%clk 0:00:34]}  Rxc1 {[%clk 0:00:26]} 29. Qxc1 {[%clk 0:00:27]}  Rc4 {[%clk 0:00:20]} 30. Qb2 {[%clk 0:00:26]}  d4 {[%clk 0:00:15]} 31. Qb5 {[%clk 0:00:24]}  Rc8 {[%clk 0:00:12]} 32. Ne5 {[%clk 0:00:19]}  Qf6 {[%clk 0:00:11]} 33. f4 {[%clk 0:00:09]}  g5 {[%clk 0:00:09]} 34. Nd7+ {[%clk 0:00:05]}  Bxd7 {[%clk 0:00:09]} 35. Qxd7 {[%clk 0:00:05]}  Rd8 {[%clk 0:00:09]} 36. Qf5 {[%clk 0:00:00]}  Qxf5 {[%clk 0:00:09]} 0-1

[Event "January 9 Late 2024"]
[Site "https://www.chess.com"]
[Date "2024.01.09"]
[Round "6"]
[White "Zavgorodniy, Sergiy"]
[Black "Shohat, Yotam"]
[Result "1-0"]
[Board "104"]
[TimeControl "180+1"]
[WhiteFideId "14110148"]
[BlackFideId "2813955"]
[WhiteElo "2612"]
[BlackElo "2484"]
[WhiteTeam "UKR"]
[BlackTeam "ISR"]
[WhiteClock "0:00:55"]
[BlackClock "0:00:42"]

1. d4 {[%clk 0:03:00]}  Nf6 {[%clk 0:02:59]} 2. c4 {[%clk 0:03:00]}  e6 {[%clk 0:02:59]} 3. Nf3 {[%clk 0:03:00]}  d5 {[%clk 0:02:59]} 4. e3 {[%clk 0:03:00]}  Nbd7 {[%clk 0:02:59]} 5. Nbd2 {[%clk 0:02:59]}  b6 {[%clk 0:02:59]} 6. Bd3 {[%clk 0:02:59]}  Be7 {[%clk 0:02:58]} 7. O-O {[%clk 0:02:59]}  O-O {[%clk 0:02:58]} 8. Qe2 {[%clk 0:02:59]}  Bb7 {[%clk 0:02:58]} 9. e4 {[%clk 0:02:59]}  dxe4 {[%clk 0:02:57]} 10. Nxe4 {[%clk 0:03:00]}  Nxe4 {[%clk 0:02:58]} 11. Bxe4 {[%clk 0:03:00]}  Bxe4 {[%clk 0:02:59]} 12. Qxe4 {[%clk 0:03:01]}  Nf6 {[%clk 0:02:59]} 13. Qe2 {[%clk 0:03:01]}  c5 {[%clk 0:02:59]} 14. Rd1 {[%clk 0:03:02]}  cxd4 {[%clk 0:02:59]} 15. Nxd4 {[%clk 0:03:03]}  Qc8 {[%clk 0:02:55]} 16. b3 {[%clk 0:03:03]}  Rd8 {[%clk 0:02:54]} 17. Bb2 {[%clk 0:03:04]}  a6 {[%clk 0:02:54]} 18. Rd3 {[%clk 0:03:04]}  Ne8 {[%clk 0:02:52]} 19. Rad1 {[%clk 0:03:03]}  Bf6 {[%clk 0:02:52]} 20. a4 {[%clk 0:03:01]}  Qc7 {[%clk 0:02:37]} 21. g3 {[%clk 0:02:50]}  e5 {[%clk 0:02:11]} 22. Nf5 {[%clk 0:02:46]}  e4 {[%clk 0:02:10]} 23. Rd5 {[%clk 0:01:46]}  Bxb2 {[%clk 0:02:10]} 24. Qxb2 {[%clk 0:01:43]}  Nf6 {[%clk 0:02:10]} 25. Rd6 {[%clk 0:01:40]}  Rxd6 {[%clk 0:02:01]} 26. Rxd6 {[%clk 0:01:41]}  Rd8 {[%clk 0:01:57]} 27. Rxf6 {[%clk 0:01:35]}  e3 {[%clk 0:01:26]} 28. Rd6 {[%clk 0:01:25]}  exf2+ {[%clk 0:00:52]} 29. Kf1 {[%clk 0:01:20]}  f6 {[%clk 0:00:48]} 30. Rxd8+ {[%clk 0:01:06]}  Qxd8 {[%clk 0:00:48]} 31. Qd4 {[%clk 0:01:07]}  Qe8 {[%clk 0:00:42]} 32. Qd5+ {[%clk 0:01:03]}  Kh8 {[%clk 0:00:42]} 33. Kxf2 {[%clk 0:00:55]}  g6 {[%clk 0:00:42]} 1-0

[Event "January 9 Late 2024"]
[Site "https://www.chess.com"]
[Date "2024.01.09"]
[Round "6"]
[White "Andrews, Todd"]
[Black "Olenik Campa, Rudi"]
[Result "0-1"]
[Board "107"]
[TimeControl "180+1"]
[WhiteFideId "2012456"]
[BlackFideId "14633264"]
[WhiteElo "2447"]
[BlackElo "2592"]
[WhiteTeam "USA"]
[BlackTeam "SLO"]
[WhiteClock "0:00:00"]
[BlackClock "0:00:39"]

1. d4 {[%clk 0:03:00]}  Nf6 {[%clk 0:02:57]} 2. c4 {[%clk 0:03:01]}  g6 {[%clk 0:02:57]} 3. Nc3 {[%clk 0:03:01]}  Bg7 {[%clk 0:02:58]} 4. e4 {[%clk 0:03:01]}  d6 {[%clk 0:02:58]} 5. Nf3 {[%clk 0:03:02]}  O-O {[%clk 0:02:58]} 6. Be2 {[%clk 0:03:03]}  e5 {[%clk 0:02:58]} 7. O-O {[%clk 0:03:03]}  Bg4 {[%clk 0:02:59]} 8. d5 {[%clk 0:02:59]}  a5 {[%clk 0:02:58]} 9. Nd2 {[%clk 0:02:58]}  Bd7 {[%clk 0:02:58]} 10. b3 {[%clk 0:02:55]}  Na6 {[%clk 0:02:58]} 11. Rb1 {[%clk 0:02:54]}  h5 {[%clk 0:02:48]} 12. a3 {[%clk 0:02:54]}  b6 {[%clk 0:02:48]} 13. b4 {[%clk 0:02:54]}  Nh7 {[%clk 0:02:32]} 14. c5 {[%clk 0:02:44]}  axb4 {[%clk 0:02:31]} 15. axb4 {[%clk 0:02:42]}  bxc5 {[%clk 0:02:29]} 16. Bxa6 {[%clk 0:02:41]}  Rxa6 {[%clk 0:02:30]} 17. bxc5 {[%clk 0:02:40]}  dxc5 {[%clk 0:02:30]} 18. Nc4 {[%clk 0:02:36]}  h4 {[%clk 0:02:28]} 19. Be3 {[%clk 0:02:20]}  Qe7 {[%clk 0:02:26]} 20. Rb7 {[%clk 0:02:15]}  Bc8 {[%clk 0:02:22]} 21. d6 {[%clk 0:02:07]}  Qe6 {[%clk 0:01:59]} 22. Rxc7 {[%clk 0:01:30]}  Qxc4 {[%clk 0:01:59]} 23. d7 {[%clk 0:01:18]}  Bxd7 {[%clk 0:01:56]} 24. Qxd7 {[%clk 0:01:18]}  Qxc3 {[%clk 0:01:48]} 25. Bxc5 {[%clk 0:01:18]}  Qb3 {[%clk 0:01:41]} 26. Bxf8 {[%clk 0:01:07]}  Nxf8 {[%clk 0:01:42]} 27. Qg4 {[%clk 0:01:01]}  Bf6 {[%clk 0:01:37]} 28. h3 {[%clk 0:00:57]}  Ra8 {[%clk 0:01:31]} 29. Rfc1 {[%clk 0:00:50]}  Kg7 {[%clk 0:01:29]} 30. Kh2 {[%clk 0:00:35]}  Ne6 {[%clk 0:01:26]} 31. Rd7 {[%clk 0:00:30]}  Ra2 {[%clk 0:01:16]} 32. f3 {[%clk 0:00:17]}  Bg5 {[%clk 0:01:10]} 33. Rcd1 {[%clk 0:00:16]}  Bf4+ {[%clk 0:01:09]} 34. Kh1 {[%clk 0:00:16]}  Bg3 {[%clk 0:00:57]} 35. Kg1 {[%clk 0:00:09]}  Qe3+ {[%clk 0:00:50]} 36. Kh1 {[%clk 0:00:08]}  Qf2 {[%clk 0:00:39]} 37. Rxf7+ {[%clk 0:00:04]}  Kxf7 {[%clk 0:00:40]} 38. Rd7+ {[%clk 0:00:00]}  Kf6 {[%clk 0:00:39]} 0-1

[Event "January 9 Late 2024"]
[Site "https://www.chess.com"]
[Date "2024.01.09"]
[Round "6"]
[White "Ozen, Metehan"]
[Black "Pham, Le Thao Nguyen"]
[Result "0-1"]
[Board "109"]
[TimeControl "180+1"]
[WhiteFideId "34596054"]
[BlackFideId "12401226"]
[WhiteElo "2420"]
[BlackElo "2571"]
[WhiteTeam "TUR"]
[BlackTeam "VIE"]
[WhiteClock "0:00:03"]
[BlackClock "0:00:10"]

1. e4 {[%clk 0:03:00]}  c6 {[%clk 0:02:59]} 2. d4 {[%clk 0:02:59]}  d5 {[%clk 0:03:00]} 3. e5 {[%clk 0:03:00]}  Bf5 {[%clk 0:02:59]} 4. h4 {[%clk 0:02:59]}  h5 {[%clk 0:02:59]} 5. Bd3 {[%clk 0:03:00]}  Bxd3 {[%clk 0:03:00]} 6. Qxd3 {[%clk 0:03:01]}  Qa5+ {[%clk 0:02:59]} 7. Bd2 {[%clk 0:02:57]}  Qa6 {[%clk 0:02:59]} 8. e6 {[%clk 0:02:58]}  Qxd3 {[%clk 0:02:58]} 9. exf7+ {[%clk 0:02:58]}  Kxf7 {[%clk 0:02:59]} 10. cxd3 {[%clk 0:02:59]}  Nh6 {[%clk 0:02:51]} 11. Nf3 {[%clk 0:02:59]}  Nd7 {[%clk 0:02:51]} 12. Nc3 {[%clk 0:02:58]}  Nf5 {[%clk 0:02:47]} 13. Ne2 {[%clk 0:02:58]}  g6 {[%clk 0:02:41]} 14. Nf4 {[%clk 0:02:53]}  Bh6 {[%clk 0:02:39]} 15. O-O-O {[%clk 0:02:40]}  Rae8 {[%clk 0:02:34]} 16. Rde1 {[%clk 0:02:38]}  e6 {[%clk 0:02:34]} 17. Nh3 {[%clk 0:02:34]}  Bf8 {[%clk 0:02:19]} 18. Nhg5+ {[%clk 0:02:31]}  Kf6 {[%clk 0:02:19]} 19. Bf4 {[%clk 0:02:25]}  Bb4 {[%clk 0:02:16]} 20. Re2 {[%clk 0:02:20]}  Ba5 {[%clk 0:02:01]} 21. Ne5 {[%clk 0:02:04]}  Nxd4 {[%clk 0:01:37]} 22. Re3 {[%clk 0:01:34]}  Ke7 {[%clk 0:00:26]} 23. Nxg6+ {[%clk 0:01:27]}  Kf6 {[%clk 0:00:27]} 24. Ne5 {[%clk 0:01:19]}  Ke7 {[%clk 0:00:26]} 25. Nef3 {[%clk 0:00:23]}  Nxf3 {[%clk 0:00:20]} 26. Rxe6+ {[%clk 0:00:23]}  Kd8 {[%clk 0:00:18]} 27. Nf7+ {[%clk 0:00:23]}  Kc8 {[%clk 0:00:18]} 28. Nd6+ {[%clk 0:00:23]}  Kd8 {[%clk 0:00:17]} 29. Nxb7+ {[%clk 0:00:17]}  Kc8 {[%clk 0:00:16]} 30. Nd6+ {[%clk 0:00:17]}  Kd8 {[%clk 0:00:16]} 31. Rxe8+ {[%clk 0:00:17]}  Rxe8 {[%clk 0:00:16]} 32. Nxe8 {[%clk 0:00:17]}  Nd4 {[%clk 0:00:15]} 33. Be3 {[%clk 0:00:13]}  Nf5 {[%clk 0:00:12]} 34. Re1 {[%clk 0:00:03]}  Bxe1 {[%clk 0:00:10]} 0-1

[Event "January 9 Late 2024"]
[Site "https://www.chess.com"]
[Date "2024.01.10"]
[Round "6"]
[White "Sohier, Julien"]
[Black "Olsson, William"]
[Result "0-1"]
[Board "110"]
[TimeControl "180+1"]
[WhiteFideId "645346"]
[BlackFideId "1741721"]
[WhiteElo "2362"]
[BlackElo "2565"]
[WhiteTeam "FRA"]
[BlackTeam "SWE"]
[WhiteClock "0:02:15"]
[BlackClock "0:02:10"]

1. e4 {[%clk 0:03:00]}  c5 {[%clk 0:02:59]} 2. Nc3 {[%clk 0:03:00]}  g6 {[%clk 0:02:58]} 3. d4 {[%clk 0:02:59]}  cxd4 {[%clk 0:02:57]} 4. Qxd4 {[%clk 0:03:00]}  Nf6 {[%clk 0:02:57]} 5. Be3 {[%clk 0:03:00]}  Nc6 {[%clk 0:02:57]} 6. Qd2 {[%clk 0:03:01]}  Ng4 {[%clk 0:02:55]} 7. Bg5 {[%clk 0:03:01]}  h6 {[%clk 0:02:54]} 8. Bh4 {[%clk 0:03:00]}  Bg7 {[%clk 0:02:52]} 9. h3 {[%clk 0:02:55]}  Nf6 {[%clk 0:02:51]} 10. O-O-O {[%clk 0:02:54]}  O-O {[%clk 0:02:48]} 11. f4 {[%clk 0:02:54]}  d6 {[%clk 0:02:44]} 12. Nf3 {[%clk 0:02:53]}  Qc7 {[%clk 0:02:40]} 13. g4 {[%clk 0:02:50]}  Qa5 {[%clk 0:02:34]} 14. Kb1 {[%clk 0:02:48]}  Be6 {[%clk 0:02:21]} 15. f5 {[%clk 0:02:15]}  Nxe4 {[%clk 0:02:10]} 0-1

[Event "January 9 Late 2024"]
[Site "https://www.chess.com"]
[Date "2024.01.09"]
[Round "6"]
[White "Silvestre, Christian"]
[Black "Mendez Fortes, Eduardo Jesus"]
[Result "0-1"]
[Board "111"]
[TimeControl "180+1"]
[WhiteFideId "30956269"]
[BlackFideId "3502376"]
[WhiteElo "2308"]
[BlackElo "2564"]
[WhiteTeam "USA"]
[BlackTeam "CUB"]
[WhiteClock "0:00:00"]
[BlackClock "0:01:44"]

1. e4 {[%clk 0:02:57]}  e5 {[%clk 0:02:57]} 2. Bc4 {[%clk 0:02:55]}  Nf6 {[%clk 0:02:55]} 3. d3 {[%clk 0:02:55]}  c6 {[%clk 0:02:49]} 4. Qe2 {[%clk 0:02:51]}  Bc5 {[%clk 0:02:47]} 5. Nf3 {[%clk 0:02:50]}  d6 {[%clk 0:02:47]} 6. h3 {[%clk 0:02:49]}  h6 {[%clk 0:02:46]} 7. O-O {[%clk 0:02:49]}  O-O {[%clk 0:02:46]} 8. Be3 {[%clk 0:02:44]}  Bb6 {[%clk 0:02:46]} 9. Bb3 {[%clk 0:02:40]}  Nbd7 {[%clk 0:02:45]} 10. Nbd2 {[%clk 0:02:38]}  Re8 {[%clk 0:02:44]} 11. c3 {[%clk 0:02:38]}  Nf8 {[%clk 0:02:44]} 12. Rfd1 {[%clk 0:02:37]}  Ng6 {[%clk 0:02:44]} 13. Qf1 {[%clk 0:02:36]}  Nh5 {[%clk 0:02:44]} 14. d4 {[%clk 0:02:31]}  Qf6 {[%clk 0:02:43]} 15. dxe5 {[%clk 0:02:13]}  dxe5 {[%clk 0:02:42]} 16. Nc4 {[%clk 0:01:54]}  Bc7 {[%clk 0:02:38]} 17. Nh2 {[%clk 0:01:49]}  Nhf4 {[%clk 0:02:38]} 18. Ng4 {[%clk 0:01:39]}  Qg5 {[%clk 0:02:34]} 19. g3 {[%clk 0:01:34]}  Nxh3+ {[%clk 0:02:32]} 20. Qxh3 {[%clk 0:01:29]}  Qxg4 {[%clk 0:02:31]} 21. Qxg4 {[%clk 0:01:23]}  Bxg4 {[%clk 0:02:31]} 22. Nd6 {[%clk 0:01:12]}  Bxd6 {[%clk 0:02:26]} 23. Rxd6 {[%clk 0:01:13]}  Nf8 {[%clk 0:02:14]} 24. Kg2 {[%clk 0:01:07]}  a6 {[%clk 0:02:08]} 25. f3 {[%clk 0:01:05]}  Be6 {[%clk 0:02:07]} 26. Rad1 {[%clk 0:01:04]}  a5 {[%clk 0:02:03]} 27. Bxe6 {[%clk 0:01:01]}  Rxe6 {[%clk 0:02:03]} 28. Rxe6 {[%clk 0:00:58]}  fxe6 {[%clk 0:02:03]} 29. Bc5 {[%clk 0:00:52]}  Re8 {[%clk 0:01:57]} 30. Bb6 {[%clk 0:00:27]}  a4 {[%clk 0:01:54]} 31. Bc7 {[%clk 0:00:27]}  Ng6 {[%clk 0:01:53]} 32. Rd7 {[%clk 0:00:21]}  Re7 {[%clk 0:01:53]} 33. Rxe7 {[%clk 0:00:21]}  Nxe7 {[%clk 0:01:54]} 34. Bxe5 {[%clk 0:00:21]}  Kf7 {[%clk 0:01:53]} 35. Kf2 {[%clk 0:00:19]}  Nc8 {[%clk 0:01:53]} 36. Ke3 {[%clk 0:00:19]}  Nb6 {[%clk 0:01:53]} 37. b3 {[%clk 0:00:19]}  Nd7 {[%clk 0:01:50]} 38. Bd6 {[%clk 0:00:17]}  axb3 {[%clk 0:01:50]} 39. axb3 {[%clk 0:00:17]}  e5 {[%clk 0:01:50]} 40. f4 {[%clk 0:00:16]}  Ke6 {[%clk 0:01:50]} 41. Ba3 {[%clk 0:00:15]}  g6 {[%clk 0:01:50]} 42. Kf3 {[%clk 0:00:14]}  h5 {[%clk 0:01:49]} 43. g4 {[%clk 0:00:14]}  exf4 {[%clk 0:01:49]} 44. Kxf4 {[%clk 0:00:14]}  h4 {[%clk 0:01:45]} 45. g5 {[%clk 0:00:14]}  Ne5 {[%clk 0:01:44]} 46. Bc1 {[%clk 0:00:00]}  Nd3+ {[%clk 0:01:44]} 0-1

[Event "January 9 Late 2024"]
[Site "https://www.chess.com"]
[Date "2024.01.09"]
[Round "6"]
[White "Rohan, Ahuja"]
[Black "Sroczynski, Maciej"]
[Result "1-0"]
[Board "113"]
[TimeControl "180+1"]
[WhiteFideId "5090598"]
[BlackFideId "1121472"]
[WhiteElo "2718"]
[BlackElo "2441"]
[WhiteTeam "IND"]
[BlackTeam "POL"]
[WhiteClock "0:00:02"]
[BlackClock "0:00:00"]

1. Nf3 {[%clk 0:03:00]}  Nf6 {[%clk 0:02:59]} 2. g3 {[%clk 0:03:01]}  b5 {[%clk 0:02:57]} 3. Bg2 {[%clk 0:03:01]}  Bb7 {[%clk 0:02:57]} 4. O-O {[%clk 0:03:01]}  e6 {[%clk 0:02:57]} 5. d3 {[%clk 0:02:50]}  c5 {[%clk 0:02:55]} 6. e4 {[%clk 0:02:48]}  d6 {[%clk 0:02:52]} 7. Qe2 {[%clk 0:02:48]}  Nbd7 {[%clk 0:02:49]} 8. Rd1 {[%clk 0:02:48]}  Be7 {[%clk 0:02:48]} 9. d4 {[%clk 0:02:38]}  Qb6 {[%clk 0:02:26]} 10. e5 {[%clk 0:02:27]}  dxe5 {[%clk 0:02:15]} 11. dxe5 {[%clk 0:02:28]}  Nd5 {[%clk 0:02:13]} 12. Nbd2 {[%clk 0:02:25]}  c4 {[%clk 0:02:09]} 13. Ne4 {[%clk 0:02:17]}  O-O {[%clk 0:02:08]} 14. Bg5 {[%clk 0:02:06]}  Nc5 {[%clk 0:01:59]} 15. Bxe7 {[%clk 0:01:41]}  Nxe7 {[%clk 0:01:56]} 16. Nd6 {[%clk 0:00:55]}  Bd5 {[%clk 0:01:48]} 17. b3 {[%clk 0:00:43]}  Nb7 {[%clk 0:01:29]} 18. bxc4 {[%clk 0:00:39]}  bxc4 {[%clk 0:01:29]} 19. Nxc4 {[%clk 0:00:32]}  Qa6 {[%clk 0:01:29]} 20. Nfd2 {[%clk 0:00:20]}  Na5 {[%clk 0:01:29]} 21. Bf1 {[%clk 0:00:19]}  Nxc4 {[%clk 0:01:06]} 22. Nxc4 {[%clk 0:00:20]}  Rac8 {[%clk 0:00:58]} 23. Ne3 {[%clk 0:00:20]}  Qc6 {[%clk 0:00:51]} 24. Qh5 {[%clk 0:00:19]}  Bf3 {[%clk 0:00:48]} 25. Qh4 {[%clk 0:00:11]}  Bxd1 {[%clk 0:00:47]} 26. Rxd1 {[%clk 0:00:12]}  Ng6 {[%clk 0:00:45]} 27. Qg5 {[%clk 0:00:12]}  h6 {[%clk 0:00:44]} 28. Qh5 {[%clk 0:00:13]}  Qc5 {[%clk 0:00:39]} 29. Ng4 {[%clk 0:00:10]}  Rfd8 {[%clk 0:00:38]} 30. Bd3 {[%clk 0:00:10]}  Rd4 {[%clk 0:00:31]} 31. h3 {[%clk 0:00:04]}  Rd5 {[%clk 0:00:23]} 32. Re1 {[%clk 0:00:05]}  Rb8 {[%clk 0:00:22]} 33. Bxg6 {[%clk 0:00:04]}  fxg6 {[%clk 0:00:20]} 34. Qxg6 {[%clk 0:00:05]}  Rd2 {[%clk 0:00:11]} 35. Nf6+ {[%clk 0:00:05]}  Kf8 {[%clk 0:00:11]} 36. Nh7+ {[%clk 0:00:06]}  Kg8 {[%clk 0:00:11]} 37. Nf6+ {[%clk 0:00:06]}  Kf8 {[%clk 0:00:11]} 38. Ne4 {[%clk 0:00:06]}  Qxc2 {[%clk 0:00:08]} 39. Qxe6 {[%clk 0:00:04]}  Rd1 {[%clk 0:00:07]} 40. Qf5+ {[%clk 0:00:03]}  Ke7 {[%clk 0:00:05]} 41. Rxd1 {[%clk 0:00:03]}  Qxd1+ {[%clk 0:00:05]} 42. Kg2 {[%clk 0:00:04]}  Qd5 {[%clk 0:00:05]} 43. Kh2 {[%clk 0:00:03]}  Rf8 {[%clk 0:00:05]} 44. Qg6 {[%clk 0:00:04]}  Qxe5 {[%clk 0:00:03]} 45. h4 {[%clk 0:00:02]}  Rf7 {[%clk 0:00:00]} 46. Qc6 {[%clk 0:00:02]} 1-0

[Event "January 9 Late 2024"]
[Site "https://www.chess.com"]
[Date "2024.01.09"]
[Round "6"]
[White "Sukandar, Irine Kharisma"]
[Black "Niekras, Dawid"]
[Result "0-1"]
[Board "114"]
[TimeControl "180+1"]
[WhiteFideId "7101937"]
[BlackFideId "1160451"]
[WhiteElo "2438"]
[BlackElo "2683"]
[WhiteTeam "INA"]
[BlackTeam "POL"]
[WhiteClock "0:00:00"]
[BlackClock "0:00:04"]

1. d4 {[%clk 0:03:00]}  d6 {[%clk 0:02:59]} 2. Bf4 {[%clk 0:02:59]}  g6 {[%clk 0:02:59]} 3. Nc3 {[%clk 0:02:58]}  Bg7 {[%clk 0:02:55]} 4. e4 {[%clk 0:02:58]}  c6 {[%clk 0:02:54]} 5. Qd2 {[%clk 0:02:53]}  e5 {[%clk 0:02:53]} 6. dxe5 {[%clk 0:02:51]}  dxe5 {[%clk 0:02:54]} 7. Qxd8+ {[%clk 0:02:37]}  Kxd8 {[%clk 0:02:55]} 8. O-O-O+ {[%clk 0:02:36]}  Kc7 {[%clk 0:02:55]} 9. Bg3 {[%clk 0:02:35]}  Be6 {[%clk 0:02:41]} 10. f4 {[%clk 0:02:35]}  Nd7 {[%clk 0:02:32]} 11. Nf3 {[%clk 0:02:34]}  f6 {[%clk 0:01:45]} 12. Be2 {[%clk 0:02:10]}  Bh6 {[%clk 0:01:33]} 13. Kb1 {[%clk 0:02:00]}  Bxf4 {[%clk 0:01:33]} 14. Bxf4 {[%clk 0:01:49]}  exf4 {[%clk 0:01:34]} 15. Nd4 {[%clk 0:01:47]}  Bf7 {[%clk 0:01:27]} 16. Rhf1 {[%clk 0:01:46]}  g5 {[%clk 0:01:00]} 17. Bg4 {[%clk 0:01:08]}  Ne5 {[%clk 0:00:48]} 18. Be6 {[%clk 0:01:06]}  Re8 {[%clk 0:00:35]} 19. Bxf7 {[%clk 0:01:00]}  Nxf7 {[%clk 0:00:36]} 20. g3 {[%clk 0:00:54]}  fxg3 {[%clk 0:00:23]} 21. hxg3 {[%clk 0:00:54]}  Nd6 {[%clk 0:00:23]} 22. Rde1 {[%clk 0:00:42]}  h5 {[%clk 0:00:23]} 23. Nf3 {[%clk 0:00:19]}  Nh6 {[%clk 0:00:17]} 24. e5 {[%clk 0:00:18]}  fxe5 {[%clk 0:00:16]} 25. Nxg5 {[%clk 0:00:18]}  Ng4 {[%clk 0:00:15]} 26. Rh1 {[%clk 0:00:15]}  Kb6 {[%clk 0:00:06]} 27. Re2 {[%clk 0:00:14]}  a5 {[%clk 0:00:05]} 28. a4 {[%clk 0:00:13]}  Ref8 {[%clk 0:00:03]} 29. b3 {[%clk 0:00:13]}  Rf5 {[%clk 0:00:02]} 30. Nge4 {[%clk 0:00:12]}  Nxe4 {[%clk 0:00:03]} 31. Nxe4 {[%clk 0:00:12]}  Rd8 {[%clk 0:00:04]} 32. Kb2 {[%clk 0:00:10]}  Rd4 {[%clk 0:00:04]} 33. Nd2 {[%clk 0:00:09]}  Kc7 {[%clk 0:00:03]} 34. Nc4 {[%clk 0:00:09]}  b6 {[%clk 0:00:03]} 35. Rhe1 {[%clk 0:00:08]}  Rd5 {[%clk 0:00:02]} 36. Nd2 {[%clk 0:00:06]}  Rg5 {[%clk 0:00:02]} 37. Ne4 {[%clk 0:00:06]}  Rg6 {[%clk 0:00:03]} 38. Nc3 {[%clk 0:00:05]}  Rd4 {[%clk 0:00:03]} 39. Ne4 {[%clk 0:00:05]}  b5 {[%clk 0:00:02]} 40. Rh1 {[%clk 0:00:05]}  bxa4 {[%clk 0:00:03]} 41. bxa4 {[%clk 0:00:05]}  Rxa4 {[%clk 0:00:03]} 42. Rxh5 {[%clk 0:00:05]}  Rb4+ {[%clk 0:00:04]} 43. Kc1 {[%clk 0:00:05]}  Kb6 {[%clk 0:00:04]} 44. Rh8 {[%clk 0:00:04]}  Kc7 {[%clk 0:00:03]} 45. Rh7+ {[%clk 0:00:04]}  Kb6 {[%clk 0:00:04]} 46. Nd6 {[%clk 0:00:04]}  Rd4 {[%clk 0:00:03]} 47. Nc8+ {[%clk 0:00:04]}  Ka6 {[%clk 0:00:04]} 48. Ra7+ {[%clk 0:00:03]}  Kb5 {[%clk 0:00:04]} 49. Rb7+ {[%clk 0:00:02]}  Kc5 {[%clk 0:00:05]} 50. Nb6 {[%clk 0:00:01]}  Rh6 {[%clk 0:00:04]} 51. Nd7+ {[%clk 0:00:00]}  Kd6 {[%clk 0:00:04]} 0-1